Cogmind - Beta 15 @@@ ROGUE MODE // 2025.07.22 @ 09:53:30 Player: Fazzonamite Result: Destroyed by C-17 Slicer with Blade Saw Performance ------------- Evolutions (4) 2000 Regions Visited (4) 800 Robots Destroyed (19) 95 Value Destroyed (800) 800 Prototype IDs (3) 60 Alien Tech Used (0) 0 Bonus (290) 290 TOTAL SCORE: 4045 Bonus ------- Registered with UFD 300 Friendly Fire -10 Cogmind --------- Core Integrity 0/850 Matter 209/300 Energy 99/100 System Corruption 0% Temperature Cool (0) Movement Core (50) Location -6/Factory Parts ------- > --- POWER (2) -------- (None) > --- PROPULSION (4) --- (None) > --- UTILITY (6) ------ Surveybot 17 Chip System Guard > --- WEAPON (3) ------- (None) > --- INVENTORY (5) ---- Light Deuterium Engine Armored Wheel IFF Parser Plasma Cutter DRS Beacon (Ready) Peak State ------------ > --- POWER ------------ F-cell Engine Light Fission Core > --- PROPULSION ------- Spiked Treads Improved Medium Treads Wheel Armored Wheel > --- UTILITY ---------- Heat Sink Improved Heat Sink Large Storage Unit Advanced Terrain Scanner Surveybot 17 Chip A0-MCA's Component Scanner > --- WEAPON ----------- Heavy Particle Gun Heavy Particle Gun Minigun > --- INVENTORY -------- Improved Ion Engine Light Deuterium Engine Light Fission Core Light Fission Core Small Storage Unit Matter Compressor Mapping Drone Bay Heavy Particle Gun Heavy Particle Gun Heavy Laser Rocket Launcher Plasma Cutter Heavy Hammer DRS Beacon [Rating: 63] Favorites ----------- Power Light Ion Engine Engine Light Ion Engine Power Core Light Fission Core Propulsion Wheel Treads Spiked Treads Leg Flexi-carbon Leg Wheel Wheel Hover Unit Backup Propulsion III Flight Unit Xenon Bombardment Thruster Utility Large Storage Unit Device Heat Sink Storage Large Storage Unit Processor A0-MCA's Component Scanner Hackware Improved Hacking Suite Protection Light Armor Plating Weapon Salvaging Laser Energy Gun Salvaging Laser Energy Cannon Subdweller Beam Cannon Ballistic Gun Assault Rifle Launcher Rocket Launcher Build | -11 -10 -10 -9 -6 ------- Run | Yrd Mat Sub Scr Fac Slots Evolved 8 | . . . . 8 Power 1 | . . . . 1 Propulsion 2 | . . . . 2 Utility 4 | . . . . 4 Weapon 1 | . . . . 1 Parts Attached 55 | 6 1 7 13 28 Power 7 | 1 . . 3 3 Engine 6 | 1 . . 3 2 Core 1 | . . . . 1 Reactor . | . . . . . Propulsion 18 | 2 . 1 4 11 Treads 2 | . . . 1 1 Leg 1 | . . . . 1 Wheel 9 | 2 . 1 3 3 Hover 5 | . . . . 5 Flight 1 | . . . . 1 Utility 16 | 1 1 2 3 9 Device 7 | 1 . 1 3 2 Storage 2 | . 1 . . 1 Processor 3 | . . . . 3 Hackware 2 | . . . . 2 Protection 2 | . . 1 . 1 Artifact . | . . . . . Weapon 14 | 2 . 4 3 5 Energy Gun 7 | . . 2 2 3 Energy Cannon 1 | . . 1 . . Ballistic Gun 4 | 2 . . 1 1 Ballistic Cannon . | . . . . . Launcher 2 | . . 1 . 1 Special Weapon . | . . . . . Impact Weapon . | . . . . . Slashing Weapon . | . . . . . Piercing Weapon . | . . . . . Special Melee Weapon . | . . . . . Unidentified Prototypes . | . . . . . Parts Lost 27 | . . 2 . 25 Power 3 | . . . . 3 Propulsion 14 | . . 1 . 13 Utility 7 | . . 1 . 6 Weapon 3 | . . . . 3 Highest Loss Streak 10 | . . 2 . 10 To Critical Strikes . | . . . . . Average Backups 11 | 2 4 11 12 8 Power 1 | . 1 1 1 2 Propulsion 2 | . 1 4 2 . Utility 4 | . 2 2 5 2 Weapon 2 | . . 2 2 2 Tool/Special . | . . . . . Unused Backups 15 | . . . 4 11 Power 4 | . . . 1 3 Propulsion 1 | . . . . 1 Utility 4 | . . . 1 3 Weapon 5 | . . . 2 3 Tool/Special 1 | . . . . 1 Average Slot Usage (%) 94 | . 86 98 99 76 Engine 12 | . 14 14 13 7 Treads 5 | . . . 6 6 Wheel 19 | . 28 27 21 7 Device 13 | . 14 7 14 11 Storage 11 | . 1 14 14 4 Processor 2 | . . . . 13 Energy Gun 12 | . . 8 14 9 Ballistic Gun 12 | . 28 19 13 4 Peak Build Rating 63 | 8 9 10 20 63 Average Rating 19 | 5 8 8 13 47 On Entrance 9 | . 8 9 9 20 Naked Turns . | . . . . . Heaviest Build 51 | 7 27 29 35 51 Greatest Support 50 | 20 20 20 40 50 Greatest Overweight (x) 3 | . 1 1 3 2 Average Overweight (x) 1 | . . 1 1 . Largest Inventory Capacity 15 | 5 15 15 15 15 Average Capacity 13 | 5 5 15 15 11 Most Carried 15 | 5 5 15 15 15 Average Carried 12 | 2 4 11 14 9 Final Capacity 15 | 5 15 15 15 5 Final Carried 15 | 3 5 15 15 5 Class Distribution -------------------- 83% | Mutant 9% | Skirmisher 3% | Gunner Dominant Class ---------------- Mutant | -10/Materials Mutant | -10/Subcaves Mutant | -9/Scraptown Skirmisher | -6/Factory Resources | -11 -10 -10 -9 -6 ----------- Run | Yrd Mat Sub Scr Fac Matter Collected 1026 | 261 27 74 204 460 Remotely . | . . . . . Salvage Created 774 | 37 20 103 . 614 Parts 34 | 4 4 7 . 19 Haulers Intercepted . | . . . . . Recyclers Shooed . | . . . . . Parts Field Recycled . | . . . . . Retrieved Matter . | . . . . . Parts Self-Destructed 4 | . . 4 . . Prevented . | . . . . . Kills | -11 -10 -10 -9 -6 ------- Run | Yrd Mat Sub Scr Fac Combat Hostiles Destroyed 15 | . 1 2 . 12 Guns 10 | . 1 2 . 7 AOE 5 | . . . . 5 Classes Destroyed 9 | 1 1 1 . 6 Worker 1 | . . . . 1 Builder 1 | . . . . 1 Tunneler 2 | 2 . . . . Swarmer 1 | . 1 . . . Grunt 8 | . . . . 8 Brawler 1 | . . . . 1 Hunter 2 | . . . . 2 Programmer 1 | . . . . 1 Subdweller 2 | . . 2 . . Best Kill Streak 6 | 1 1 2 . 6 Combat Bots Only 4 | . 1 2 . 4 Max Kills in Single Turn 2 | 1 1 1 . 2 Gunslinging . | . . . . . Exploded 1 | . . . . 1 Melee . | . . . . . Uniques/NPCs Destroyed . | . . . . . Combat | -11 -10 -10 -9 -6 -------- Run | Yrd Mat Sub Scr Fac Hostile Shots Fired 318 | . . 18 . 300 Missed 119 | . . 3 . 116 Hits 199 | . . 15 . 184 Melee 19 | . . . . 19 Projectile 180 | . . 15 . 165 AOE 2 | . . . . 2 Critical Strikes 9 | . . 1 . 8 Damage Taken 3387 | . 73 311 . 3003 Core 894 | . . 35 . 859 Absorbed by Shields . | . . . . . Core Remaining (%) 93 | 100 . . 86 . Volleys Fired 78 | 6 2 13 . 57 Largest 3 | 2 2 2 . 3 Hottest 143 | 40 40 50 . 143 Shots Fired 194 | 12 4 26 . 152 Gun 189 | 12 4 26 . 147 Cannon . | . . . . . Launcher 5 | . . . . 5 Special . | . . . . . Kinetic 87 | 12 4 18 . 53 Thermal 102 | . . 8 . 94 Explosive 5 | . . . . 5 Electromagnetic . | . . . . . Robot Hit Streak 13 | 4 1 4 . 13 Robot Miss Streak 6 | 1 1 3 . 6 Penetration Max . | . . . . . Secondary Targets . | . . . . . Shots Hit Robots 122 | 7 2 16 . 97 Core Hits 58 | 2 2 7 . 47 Critical Kills . | . . . . . Critical Parts Destroyed 1 | 1 . . . . Critical Strikes 4 | 1 . . . 3 Burn 3 | . . . . 3 Destroy 1 | 1 . . . . Melee Attacks . | . . . . . Impact . | . . . . . Slashing . | . . . . . Piercing . | . . . . . Sneak Attacks . | . . . . . Combat Hostiles . | . . . . . Follow-up Attacks . | . . . . . Damage Inflicted 2585 | 73 16 177 . 2319 Guns 1986 | 73 16 177 . 1720 Cannons . | . . . . . Explosions 587 | . . . . 587 Melee . | . . . . . Ramming 12 | . . . . 12 Kinetic 889 | 73 16 118 . 682 Thermal 1097 | . . 59 . 1038 Explosive 587 | . . . . 587 Electromagnetic . | . . . . . Impact . | . . . . . Slashing . | . . . . . Piercing . | . . . . . Highest Corruption 8 | . . . . 8 Average Corruption 5 | . . . . 5 Corruption Purged . | . . . . . Corruption Blocked . | . . . . . Effects 12 | . . . . 12 Message Errors 3 | . . . . 3 Matter Fused 1 | . . . . 1 Heat Flow Errors 2 | . . . . 2 Energy Discharges 1 | . . . . 1 Parts Fused 1 | . . . . 1 Data Loss (minor) 3 | . . . . 3 Data Loss (major) 1 | . . . . 1 Overload Shots . | . . . . . Overflow Damage 6 | . . . . 6 Projectiles . | . . . . . Explosions 6 | . . . . 6 Melee . | . . . . . Knockbacks . | . . . . . Impact . | . . . . . Kinetic . | . . . . . Secondary . | . . . . . Self-Inflicted Damage 141 | . . . . 141 Shots 2 | . . . . 2 Rammed 3 | . . . . 3 Targets Rammed 3 | . . . . 3 Kicked . | . . . . . Crushed . | . . . . . Highest Temperature 258 | . . . . 258 Average Temperature 55 | . . . . 55 Received Heat Transfer 519 | . . 51 . 468 Siege Activations . | . . . . . Martial Activations . | . . . . . Shielding Activations . | . . . . . Robots Disrupted . | . . . . . Combat Hostiles . | . . . . . Robots Corrupted . | . . . . . Combat Hostiles . | . . . . . Parts Fried . | . . . . . Impact Corruptions . | . . . . . Robots Melted . | . . . . . Combat Hostiles . | . . . . . Parts Melted 3 | . . . . 3 Heat Transferred 2459 | . . 175 . 2284 Parts Sabotaged . | . . . . . Parts Stolen . | . . . . . Parts Stripped . | . . . . . Power Chain Reactions . | . . . . . Alert | -11 -10 -10 -9 -6 ------- Run | Yrd Mat Sub Scr Fac Maximum Alert Level . | . . . . . Low Security (%) 100 | 100 100 . . 100 Level 1 . | . . . . . Level 2 . | . . . . . Level 3 . | . . . . . Level 4 . | . . . . . Level 5 . | . . . . . High Security . | . . . . . Max Security . | . . . . . Peak Influence 196 | 5 20 . . 196 Initial . | . . . . . Average 49 | . 3 . . 64 Influence Increases 767 | 10 34 . . 723 Destroy 0b10 Robot/C 260 | . 20 . . 240 Destroy 0b10 Robot/NC 20 | 10 . . . 10 Destroy Leader 40 | . . . . 40 Successful Hack 35 | . 14 . . 21 Disable Machine 75 | . . . . 75 Destroy Structure 52 | . . . . 52 Lose Combat Pursuer 285 | . . . . 285 Influence Decreases 654 | 10 34 . . 610 Time Decay 358 | 10 34 . . 314 Lost Part 250 | . . . . 250 Purge Threat 46 | . . . . 46 Squads Dispatched 5 | . 1 . . 4 Investigation 1 | . 1 . . . Extermination 1 | . . . . 1 Reinforcement 3 | . . . . 3 Assault . | . . . . . Garrison . | . . . . . Intercept . | . . . . . Searches Triggered . | . . . . . Construction Impeded 1 | . . . . 1 Haulers Reinforced . | . . . . . Active Scanning Responses . | . . . . . Cargo Convoy Interrupts . | . . . . . Stealth | -11 -10 -10 -9 -6 --------- Run | Yrd Mat Sub Scr Fac Distress Signals 6 | . 1 . . 5 Communications Jammed . | . . . . . Distress Signals . | . . . . . Times Spotted 58 | . 2 9 . 47 Peak Tracking Total 10 | . 1 6 . 10 Tactical Retreats 10 | . . . . 10 Traps | -11 -10 -10 -9 -6 ------- Run | Yrd Mat Sub Scr Fac Traps Triggered 2 | . 2 . . . Indirectly . | . . . . . Trap Hack Attempts . | . . . . . Triggered . | . . . . . Disarmed . | . . . . . Reprogrammed . | . . . . . Reused . | . . . . . Traps Extracted . | . . . . . Installed 1 | . . . . 1 Triggered . | . . . . . Most Traps Carried 1 | . . 1 1 1 Machines | -11 -10 -10 -9 -6 ---------- Run | Yrd Mat Sub Scr Fac Machines Disabled 5 | . . . . 5 Max in Single Turn 2 | . . . . 2 Machines Repaired . | . . . . . Machines Dismantled . | . . . . . Machines Sabotaged . | . . . . . Overloaded Fab Kills . | . . . . . Hacking | -11 -10 -10 -9 -6 --------- Run | Yrd Mat Sub Scr Fac Machines Accessed 9 | . 2 . 2 5 Terminals 4 | . 2 . . 2 Fabricators 1 | . . . . 1 Repair Stations 1 | . . . . 1 Recycling Units . | . . . . . Scanalyzers . | . . . . . Garrison Access 1 | . . . . 1 Total Hacks 30 | . 8 . 11 11 Successful 20 | . 5 . 11 4 Failed 10 | . 3 . . 7 Catastrophic 1 | . . . . 1 Database Lockouts . | . . . . . Manual 11 | . 6 . . 5 Terminals 15 | . 8 . . 7 Fabricators 1 | . . . . 1 Repair Stations 1 | . . . . 1 Recycling Units . | . . . . . Scanalyzers . | . . . . . Garrison Access 2 | . . . . 2 Terminal Hacks 17 | . 3 . 11 3 Record 5 | . 1 . 4 . Robot Analysis 8 | . 1 . 7 . Branch Access Points 1 | . . . . 1 Unreport Threat 1 | . . . . 1 Zone Layout 2 | . 1 . . 1 Fabricator Hacks . | . . . . . Repair Station Hacks 1 | . . . . 1 Refit 1 | . . . . 1 Recycling Unit Hacks . | . . . . . Scanalyzer . | . . . . . Garrison Access Hacks . | . . . . . Unauthorized Hacks 2 | . 2 . . . Terminals 2 | . 2 . . . Botnet 2 | . 2 . . . Fabricators . | . . . . . Repair Stations . | . . . . . Recycling Units . | . . . . . Scanalyzers . | . . . . . Garrison Access . | . . . . . Data Cores Recovered . | . . . . . Used . | . . . . . Hacking Detections 6 | . 2 . . 4 Full Trace Events . | . . . . . Feedback Events . | . . . . . Feedback Blocked . | . . . . . Robot Schematics Acquired . | . . . . . Robots Built . | . . . . . Authchips . | . . . . . Time . | . . . . . Total Robot Build Rating . | . . . . . Part Schematics Acquired . | . . . . . Parts Built . | . . . . . Authchips . | . . . . . Time . | . . . . . Total Part Build Rating . | . . . . . Parts Repaired . | . . . . . Time . | . . . . . Parts Recycled . | . . . . . Recycled Matter . | . . . . . Retrieved Matter . | . . . . . Retrieved Components . | . . . . . Parts Scanalyzed . | . . . . . Part Schematics Acquired . | . . . . . Parts Damaged . | . . . . . Bothacking | -11 -10 -10 -9 -6 ------------ Run | Yrd Mat Sub Scr Fac Used RIF Installer . | . . . . . Robots Hacked . | . . . . . Non-combat . | . . . . . Combat . | . . . . . Robot Hacks Applied . | . . . . . Relay Couplers Released . | . . . . . Fabnet Peak Effective % . | . . . . . Robots Rewired . | . . . . . Allies Hacked . | . . . . . Hacks Repelled . | . . . . . Allies | -11 -10 -10 -9 -6 -------- Run | Yrd Mat Sub Scr Fac Total Allies . | . . . . . Largest Group . | . . . . . Highest-Rated Group . | . . . . . Highest-Rated Ally . | . . . . . Total Orders 4 | . . . 4 . RETURN 4 | . . . 4 . Ally Attacks . | . . . . . Total Damage . | . . . . . Kills . | . . . . . Allies Corrupted . | . . . . . Allies Melted . | . . . . . Intel | -11 -10 -10 -9 -6 ------- Run | Yrd Mat Sub Scr Fac Active Infowar (turns) 602 | 27 134 65 25 351 Optics 25 | . . . 25 . Terrain 577 | 27 134 65 . 351 Robot Analysis Total 8 | . 1 . 7 . Derelict Logs Recovered 5 | . . . 5 . Drone Launches 10 | . . . 10 . Drone Recoveries 10 | . . . 10 . Exploration | -11 -10 -10 -9 -6 ------------- Run | Yrd Mat Sub Scr Fac Turns Passed 3506 | 89 134 215 2327 741 Spaces Moved 2871 | 66 153 146 1960 546 Core 204 | 8 . . . 196 Treads 26 | . . . . 26 Legs 3 | . . . . 3 Wheels 2548 | 58 153 146 1960 231 Hover 62 | . . . . 62 Flight 28 | . . . . 28 Fastest Speed 40 | 50 80 95 95 40 Average Speed 99 | 76 81 95 105 86 Slowest Speed 260 | 80 95 95 125 260 Overloaded Moves . | . . . . . Propulsion Burnouts . | . . . . . Robots Hopped . | . . . . . Potential Cave-ins . | . . . . . Cave-ins Triggered . | . . . . . Exploration Rate (%) 31 | 4 30 12 92 19 Regions Visited 4 Branch Regions 2 Pre-discovered Areas 2 | . . . 2 . Known Exits Taken . | . . . . . Unknown Exits Taken 4 | 1 1 1 1 . Scrap Searched 5 | . . . 5 . Spaces Dug . | . . . . . Terrain Destroyed 49 | . . . . 49 Melee . | . . . . . Projectile . | . . . . . AOE 49 | . . . . 49 Terrain Rammed . | . . . . . Walls Destroyed . | . . . . . Machines Disabled . | . . . . . Actions | -11 -10 -10 -9 -6 --------- Run | Yrd Mat Sub Scr Fac Total 3389 | 93 160 199 2225 712 Wait 266 | 7 . 14 210 35 Move 2867 | 65 152 145 1959 546 Hop . | . . . . . Pick Up 68 | 9 4 15 18 22 Fast Attach 9 | . . . 1 8 Attach 37 | 6 1 4 6 20 Detach 4 | . . . . 4 Swap 19 | . . 5 10 4 Drop 37 | . 1 3 21 12 Fire 78 | 6 2 13 . 57 Melee . | . . . . . Ram 3 | . . . . 3 Kick . | . . . . . Crush . | . . . . . Escape Stasis . | . . . . . Rewire . | . . . . . Trap 1 | . . . . 1 Miscellaneous . | . . . . . Route ------- -11/Scrapyard -10/Materials (discovered 2 exits: [*Min] / [*Sub]) -10/Subcaves -9/Scraptown (discovered 2 exits: *Fac x2) -6/Factory (discovered 2 exits: Low x2) History --------- Turn | Location | Event 16 | -11/Scrapyard | Discovered new exit (range 16) 90 | -11/Scrapyard | Entered Materials 91 | -10/Materials | Met a group of wandering Federalists 142 | -10/Materials | Discovered new exit (range 13) 220 | -10/Materials | Discovered new exit (range 5) 224 | -10/Materials | Entered Subcaves 225 | -10/Subcaves | Continued accompanying wandering Federalists (4) 225 | -10/Subcaves | Approached by a straggling Scientist 320 | -10/Subcaves | Build established: Mutant 346 | -10/Subcaves | Shifting Twisted Machinery released Piercing Trap 347 | -10/Subcaves | Shifting Twisted Machinery released Sub. Beam Cannon 373 | -10/Subcaves | Ambushed by Subdwellers from Twisted Machinery 423 | -10/Subcaves | Lost 4 allies 437 | -10/Subcaves | Wandering Federalist uncovered a shortcut to Scraptown 439 | -10/Subcaves | Entered Scraptown 553 | -9/Scraptown | Visited Assassins FH 588 | -9/Scraptown | Visited Symbiants 620 | -9/Scraptown | Learned location of Extension (-5) 736 | -9/Scraptown | Heard Great Nut preacher, LISTEN AND RECITE! 758 | -9/Scraptown | Scanned Subdweller tech in exchange for log data 768 | -9/Scraptown | Learned Research emergency access door positions 770 | -9/Scraptown | Learned location of 1 exit from Factory 772 | -9/Scraptown | Learned Factory security intel 794 | -9/Scraptown | Discovered new exit (range 3) 1080 | -9/Scraptown | Visited Junk Repository 1115 | -9/Scraptown | Visited Awakened 1132 | -9/Scraptown | Visited CPS Storage 1155 | -9/Scraptown | Visited Science Testing Area 1310 | -9/Scraptown | Visited UFD Registry 1310 | -9/Scraptown | Registered with UFD as "Gearplate" 1335 | -9/Scraptown | Visited Scrapoid Research Area 1355 | -9/Scraptown | Visited Observation Area 1403 | -9/Scraptown | Visited Scrap Suit Storage 1555 | -9/Scraptown | Visited LU-1G1's Boring Crew 1633 | -9/Scraptown | Visited Derelict Rescue Squad 1641 | -9/Scraptown | Found DRS Beacon 1660 | -9/Scraptown | Visited DA-N13 Charitable Foundation 1676 | -9/Scraptown | Found DCF Scrap (26 items) 1743 | -9/Scraptown | Visited Cartography Club 1778 | -9/Scraptown | Found Surveybot 17 Chip 1942 | -9/Scraptown | Discovered new exit (range 9) 2235 | -9/Scraptown | Visited Chapter 10 2388 | -9/Scraptown | Visited Analyses Database 2422 | -9/Scraptown | Visited A0-MCA Data Center 2430 | -9/Scraptown | Given a B rating by A0-MCA 2435 | -9/Scraptown | Found A0-MCA's Component Scanner 2766 | -9/Scraptown | Entered Factory 2766 | -6/Factory | Evolved 8 slots: Power x1, Propulsion x2, Utility x4, Weapon x1 2767 | -6/Factory | Identified exit to Lower Caves 3179 | -6/Factory | Lost 4 parts (3n1u) 3200 | -6/Factory | Build established: Skirmisher 3270 | -6/Factory | Core integrity fell below 50% 3322 | -6/Factory | Lost 7 parts (1p3n2u1w) 3473 | -6/Factory | Core integrity fell below 20% 3507 | -6/Factory | Destroyed by C-17 Slicer with Blade Saw Last Messages --------------- 03475_ Backup Power III destroyed. 03476_ Knocked back. 03482_ Component scanned: Imp. Airjet. 03482_ Acquired Arm. Wheel. 03483_ Gravmag System severed. 03486_ Acquired Imp. Airjet. 03488_ R-10 Processor collects Gravmag System. 03488_ Gravmag System destroyed. 03488_ Dropped Flak Gun. 03490_ Imp. Hacking Suite destroyed. 03490_ Gravmag System destroyed. 03490_ Dropped Sml. Storage Unit. 03491_ Acquired Imp. Airjet. 03492_ Imp. Airjet severed. 03493_ Slug penetrates Wall. 03494_ Backup Laser III severed. 03494_ Backup Laser III disintegrated. 03502_ Slammed into C-17 Slicer. 03505_ O-24 Administrator sends out distress signal. 03505_ A0-MCA's Component Scanner severed. Map ----- +----------------------------------------------------+ | ????????????????????????????????# | | ????????????????????????????????# | | ????????????????????????????????#+##+######### | | ????????????????????????????????# # | | ????????????????????????????????# # | | ????????????????????????????????# [ ## | | ????????????????????????????????# ! ## | | ????????????????????????????????# """ """! ## | | ???????????????????????????? ???# """ """= ## | | ???????????????????????????? ???# """ """ ####" | | ???????????????????????????# ???# #??#" | | ???????????????????????????# #### """ """ #??## | | ????????????????? ?????????# ## """ """ #???? | | ????????????????? ?????????+ + """ """ #???? | | ?????????????????? ???????# ## #???? | | ??????????????????? """"??# ########/######???? | | ??????????????????? """"??# #??????# #????????? | | ????????????????? ? """"??# #??????# #????????? | | ?????????????????? ??# #??????# #????????? | | ???????????????????? ??+ #??????# #????????? | | ?????????????????????? ??# #????### ###??????? | | ??????????????????????##;### #????# #??????? | | ??????????????????????# ###### " ###????? | | ??????????????????????# s "T +?? | | ??????????????????????# c ###### ######?? | | ??????????????????????# @######????# #??????? | | ????????????????? #?????????#######??????? | | ???????????? ] #??????????????????????? | | ??????????? #??????????????????????? | | ??????????? """ * #??????????????????????? | | ???????????????""" #######??????????????????????? | | ????????????????"" ??????????????????????????????? | | ??????????????? ???????????????????????????????? | | ??????????????? ????????>???????????????????????? | | ??????????????##?????????????????????????????????? | | ?????????????????????????????????????????????????? | | ?????????????????????????????????????????????????? | | ?????????????????????????????????????????????????? | | | | | | | | | | | | | | | | | | | | | | | | | +----------------------------------------------------+ Best States ------------- Heat Dissipation 61 Energy Generation 26 Energy Capacity 665 Matter Stores 300 Matter Capacity 300 Sight Range 21 Terrain Scan Range 20 Terrain Scan Density 1210 Corruption Containment 8 Armor Coverage 225 Evasion (%) 62 Recoil Reduction 2 Offensive Hacking 12 Item Schematics ----------------- None Robot Schematics ------------------ None Fabricated ------------ Nothing Repaired ---------- Nothing Alien Tech Used ----------------- None Achievements -------------- None Challenges ------------ None Game ------ Seed ParticleAluminumShifter Manual? 0 Play Time 01:05:42 Cumulative 195.9 hours Start 2025.07.22 @ 08:45:32 End 2025.07.22 @ 09:53:30 Sessions 1 Manual Loads 0 Difficulty Rogue Special Mode None Game No. 127 Rogue 127 Adventurer 0 Explorer 0 Win Type - Total 4 Types 3/0/1/0/0/0/0/0/0/0 Lore% 58 Gallery% 55 Achievement% 51 Wizard Run 0 Options --------- Layout 2 ASCII 0 Keyboard 0 Movement Mouse Keybinds 0 Fullscreen 1 Font 48/Smallcaps Map View 55x44 Zoom Use 0% Tactical HUD 1 Map Filters NONE Filters NONE Steam 1 RUN: 083bead0-1171-4c17-97fc-1b827f9c3f45